Workbook

Sheet Europe Map
B2: Choropleth Map of Europe
B42: source: | C42: CIA World Fact Book (https://www.cia.gov/library/publications/the-world-factbook/index.html)

Sheet Data
B2: Data | E2: all data 2009 (estimated)
B4: No. | C4: Country | D4: Abbreviation | E4: Odpovědí | F4: Průměrné hodnocení | G4: Průměrný věk | H4: Poměr muž/žena | I4: Průměrné vzdělání | K4: Selection
B5: 1 | C5: Albanian | D5: ALB | E5: 18 | F5: 1.888888889 | G5: 2.277777778 | H5: 1.277777778 | I5: 3.444444444 | K5: =INDEX(E5:I5,1,Control!$D$10) -> 1.888888889
B6: =B5+1 -> 2 | C6: Austrian | D6: AUT | E6: 754 | F6: 2.281167109 | G6: 2.816976127 | H6: 1.401856764 | I6: 3.356763926 | K6: =INDEX(E6:I6,1,Control!$D$10) -> 2.281167109
B7: =B6+1 -> 3 | C7: Belarusian | D7: BLR | E7: 106 | F7: 1.754716981 | G7: 2.216981132 | H7: 1.547169811 | I7: 3.528301887 | K7: =INDEX(E7:I7,1,Control!$D$10) -> 1.754716981
B8: 4 | C8: Belgian | D8: BEL | E8: 570 | F8: 2.124561404 | G8: 2.422807018 | H8: 1.485964912 | I8: 3.335087719 | K8: =INDEX(E8:I8,1,Control!$D$10) -> 2.124561404
B9: 5 | C9: Bosnian and Herzegovinian | D9: BIH | E9: 18 | F9: 2 | G9: 2.277777778 | H9: 1.388888889 | I9: 3.222222222 | K9: =INDEX(E9:I9,1,Control!$D$10) -> 2
B10: 6 | C10: Bulgarian | D10: BGR | E10: 35 | F10: 2.057142857 | G10: 2.314285714 | H10: 1.571428571 | I10: 3.571428571 | K10: =INDEX(E10:I10,1,Control!$D$10) -> 2.057142857
B11: 7 | C11: Croatian | D11: HRV | E11: 201 | F11: 1.676616915 | G11: 2.084577114 | H11: 1.452736318 | I11: 2.815920398 | K11: =INDEX(E11:I11,1,Control!$D$10) -> 1.676616915
B12: 8 | C12: Czech | D12: CZE | E12: 3866 | F12: 2.247025349 | G12: 2.367304708 | H12: 1.344800828 | I12: 2.694774961 | K12: =INDEX(E12:I12,1,Control!$D$10) -> 2.247025349
B13: 9 | C13: Danish | D13: DNK | E13: 1503 | F13: 1.862300588 | G13: 3.78908849 | H13: 1.445775116 | I13: 3.502099076 | K13: =INDEX(E13:I13,1,Control!$D$10) -> 1.862300588
B14: 10 | C14: Estonian | D14: EST | E14: 14 | F14: 1.642857143 | G14: 2.785714286 | H14: 1.714285714 | I14: 3.857142857 | K14: =INDEX(E14:I14,1,Control!$D$10) -> 1.642857143
B15: 11 | C15: Finnish | D15: FIN | E15: 1615 | F15: 2.425650558 | G15: 2.731888545 | H15: 1.66749226 | I15: 3.242255266 | K15: =INDEX(E15:I15,1,Control!$D$10) -> 2.425650558
B16: 12 | C16: French | D16: FRA | E16: 1183 | F16: 2.207100592 | G16: 2.409129332 | H16: 1.498732037 | I16: 3.812341505 | K16: =INDEX(E16:I16,1,Control!$D$10) -> 2.207100592
B17: 13 | C17: German | D17: DEU | E17: 3674 | F17: 1.814865233 | G17: 2.794501905 | H17: 1.553892216 | I17: 2.920500953 | K17: =INDEX(E17:I17,1,Control!$D$10) -> 1.814865233
B18: 14 | C18: Greek | D18: GRC | E18: 673 | F18: 1.994056464 | G18: 2.362555721 | H18: 1.426448737 | I18: 3.320950966 | K18: =INDEX(E18:I18,1,Control!$D$10) -> 1.994056464
B19: 15 | C19: Hungarian | D19: HUN | E19: 239 | F19: 2.154811715 | G19: 2.40167364 | H19: 1.577405858 | I19: 2.794979079 | K19: =INDEX(E19:I19,1,Control!$D$10) -> 2.154811715
B20: 16 | C20: Irish | D20: IRL | E20: 259 | F20: 2.420849421 | G20: 2.810810811 | H20: 1.332046332 | I20: 3.629343629 | K20: =INDEX(E20:I20,1,Control!$D$10) -> 2.420849421
B21: 17 | C21: Italian | D21: ITA | E21: 390 | F21: 2.274358974 | G21: 2.574358974 | H21: 1.469230769 | I21: 3.020512821 | K21: =INDEX(E21:I21,1,Control!$D$10) -> 2.274358974
B22: 18 | C22: Latvian | D22: LVA | E22: 15 | F22: 2.2 | G22: 2.666666667 | H22: 1.8 | I22: 3.666666667 | K22: =INDEX(E22:I22,1,Control!$D$10) -> 2.2
B23: 19 | C23: Lithuanian | D23: LTU | E23: 7 | F23: 2.285714286 | G23: 2.142857143 | H23: 1.714285714 | I23: 3.714285714 | K23: =INDEX(E23:I23,1,Control!$D$10) -> 2.285714286
B24: 20 | C24: Luxembourger | D24: LUX | E24: 22 | F24: 1.590909091 | G24: 2.5 | H24: 1.545454545 | I24: 2.681818182 | K24: =INDEX(E24:I24,1,Control!$D$10) -> 1.590909091
B25: 21 | C25: Macedonian | D25: MKD | E25: 11 | F25: 2 | G25: 2.181818182 | H25: 1.454545455 | I25: 3.272727273 | K25: =INDEX(E25:I25,1,Control!$D$10) -> 2
B26: 22 | C26: Maltese | D26: MLT | E26: 9 | F26: 1.888888889 | G26: 2.333333333 | H26: 1.444444444 | I26: 4 | K26: =INDEX(E26:I26,1,Control!$D$10) -> 1.888888889
B27: 23 | C27: Moldovan | D27: MDA | E27: 7 | F27: 2.142857143 | G27: 2.285714286 | H27: 1.285714286 | I27: 3.714285714 | K27: =INDEX(E27:I27,1,Control!$D$10) -> 2.142857143
B28: 24 | C28: Dutch | D28: NLD | E28: 504 | F28: 1.851190476 | G28: 2.833333333 | H28: 1.543650794 | I28: 3.103174603 | K28: =INDEX(E28:I28,1,Control!$D$10) -> 1.851190476
B29: 25 | C29: Norwegian | D29: NOR | E29: 67 | F29: 2.28358209 | G29: 2.492537313 | H29: 1.373134328 | I29: 3.373134328 | K29: =INDEX(E29:I29,1,Control!$D$10) -> 2.28358209
B30: 26 | C30: Polish | D30: POL | E30: 499 | F30: 2.256513026 | G30: 2.486973948 | H30: 1.589178357 | I30: 3.266533066 | K30: =INDEX(E30:I30,1,Control!$D$10) -> 2.256513026
B31: 27 | C31: Portuguese | D31: PRT | E31: 909 | F31: 1.925192519 | G31: 2.716171617 | H31: 1.506050605 | I31: 3.636963696 | K31: =INDEX(E31:I31,1,Control!$D$10) -> 1.925192519
B32: 28 | C32: Romanian | D32: ROM | E32: 38 | F32: 1.710526316 | G32: 2.473684211 | H32: 1.736842105 | I32: 3.263157895 | K32: =INDEX(E32:I32,1,Control!$D$10) -> 1.710526316
B33: 29 | C33: Russian | D33: RUS | E33: 1914 | F33: 1.863113898 | G33: 2.389759666 | H33: 1.636363636 | I33: 3.389759666 | K33: =INDEX(E33:I33,1,Control!$D$10) -> 1.863113898
B34: 30 | C34: Serbian | D34: SR | E34: 53 | F34: 2.150943396 | G34: 2.566037736 | H34: 1.452830189 | I34: 3.471698113 | K34: =INDEX(E34:I34,1,Control!$D$10) -> 2.150943396
B35: 31 | C35: Slovakian | D35: SVK | E35: 630 | F35: 2.025396825 | G35: 2.282539683 | H35: 1.266666667 | I35: 2.796825397 | K35: =INDEX(E35:I35,1,Control!$D$10) -> 2.025396825
B36: 32 | C36: Slovenian | D36: SVN | E36: 115 | F36: 2.330434783 | G36: 2.460869565 | H36: 1.591304348 | I36: 3.104347826 | K36: =INDEX(E36:I36,1,Control!$D$10) -> 2.330434783
B37: 33 | C37: Spanish | D37: ESP | E37: 1176 | F37: 2.473639456 | G37: 2.678571429 | H37: 1.336734694 | I37: 3.522108844 | K37: =INDEX(E37:I37,1,Control!$D$10) -> 2.473639456
B38: 34 | C38: Swedish | D38: SWE | E38: 2074 | F38: 1.962391514 | G38: 2.603664417 | H38: 1.468659595 | I38: 2.556412729 | K38: =INDEX(E38:I38,1,Control!$D$10) -> 1.962391514
B39: 35 | C39: Swiss | D39: CHE | E39: 906 | F39: 1.953642384 | G39: 2.555187638 | H39: 1.389624724 | I39: 2.961368653 | K39: =INDEX(E39:I39,1,Control!$D$10) -> 1.953642384
B40: 36 | C40: Ukrainian | D40: UKR | E40: 261 | F40: 1.816091954 | G40: 2.375478927 | H40: 1.609195402 | I40: 3.620689655 | K40: =INDEX(E40:I40,1,Control!$D$10) -> 1.816091954
B41: 37 | C41: British | D41: GBR | E41: 1786 | F41: 2.35106383 | G41: 3.064949608 | H41: 1.370100784 | I41: 3.861702128 | K41: =INDEX(E41:I41,1,Control!$D$10) -> 2.35106383

Sheet Control
C2: Control
C4: List of metrics | D4: Odpovědí
D5: Průměrné hodnocení
D6: Průměrný věk
D7: Poměr muž/žena
D8: Průměrné vzdělání
C10: Selection | D10: 2
C12: Darkness | D12: 5 | E12: the smaller the darker (max: 5,21)
C14: Steps | D14: Threshold | E14: RGB | F14: Min / Max
C15: =C16+$D$12 -> 245 | D15: =F16 -> 1.590909091 | E15: =udf_RGB(C15,C15,C15) -> 16119285 | F15: =MAX(Data!$K$5:$K$41) -> 2.473639456
C16: 240 | D16: =D15+$F$17 -> 1.609299307 | E16: =udf_RGB(C16,C16,C16) -> 15790320 | F16: =MIN(Data!$K$5:$K$41) -> 1.590909091
C17: 235 | D17: 1.627689523 | E17: 15461355 | F17: =(F15-F16)/(COUNT($C$15:$C$64)-2) -> 0.01839021593
C18: 230 | D18: 1.646079739 | E18: 15132390
C19: 225 | D19: 1.664469955 | E19: 14803425
C20: 220 | D20: 1.682860171 | E20: 14474460
C21: 215 | D21: 1.701250387 | E21: 14145495
C22: 210 | D22: 1.719640602 | E22: 13816530
C23: 205 | D23: 1.738030818 | E23: 13487565
C24: 200 | D24: 1.756421034 | E24: 13158600
C25: 195 | D25: 1.77481125 | E25: 12829635
C26: 190 | D26: 1.793201466 | E26: 12500670
C27: 185 | D27: 1.811591682 | E27: 12171705
C28: 180 | D28: 1.829981898 | E28: 11842740
C29: 175 | D29: 1.848372114 | E29: 11513775
C30: 170 | D30: 1.86676233 | E30: 11184810
C31: 165 | D31: 1.885152546 | E31: 10855845
C32: 160 | D32: 1.903542762 | E32: 10526880
C33: 155 | D33: 1.921932978 | E33: 10197915
C34: 150 | D34: 1.940323194 | E34: 9868950
C35: 145 | D35: 1.95871341 | E35: 9539985
C36: 140 | D36: 1.977103626 | E36: 9211020
C37: 135 | D37: 1.995493841 | E37: 8882055
C38: 130 | D38: 2.013884057 | E38: 8553090
C39: 125 | D39: 2.032274273 | E39: 8224125
C40: 120 | D40: 2.050664489 | E40: 7895160
C41: 115 | D41: 2.069054705 | E41: 7566195
C42: 110 | D42: 2.087444921 | E42: 7237230
C43: 105 | D43: 2.105835137 | E43: 6908265
C44: 100 | D44: 2.124225353 | E44: 6579300
C45: 95 | D45: 2.142615569 | E45: 6250335
C46: 90 | D46: 2.161005785 | E46: 5921370
C47: 85 | D47: 2.179396001 | E47: 5592405
C48: 80 | D48: =D47+$F$17 -> 2.197786217 | E48: 5263440
C49: 75 | D49: 2.216176433 | E49: 4934475
C50: 70 | D50: 2.234566649 | E50: 4605510
C51: 65 | D51: 2.252956865 | E51: 4276545
C52: 60 | D52: 2.27134708 | E52: 3947580
C53: 55 | D53: 2.289737296 | E53: 3618615
C54: 50 | D54: 2.308127512 | E54: 3289650
C55: 45 | D55: 2.326517728 | E55: 2960685
C56: 40 | D56: 2.344907944 | E56: 2631720
C57: 35 | D57: 2.36329816 | E57: 2302755
C58: 30 | D58: 2.381688376 | E58: 1973790
C59: 25 | D59: 2.400078592 | E59: 1644825
C60: 20 | D60: 2.418468808 | E60: 1315860
C61: 15 | D61: 2.436859024 | E61: 986895
C62: 10 | D62: 2.45524924 | E62: 657930
C63: =C64+$D$12 -> 5 | D63: 2.473639456 | E63: 328965
C64: 0 | D64: 2.492029672 | E64: 0
C66: Name | D66: Autoshape
C67: D_ALB | D67: S_ALB
C68: D_AUT | D68: S_AUT
C69: D_BEL | D69: S_BEL
C70: D_BGR | D70: S_BGR
C71: D_BIH | D71: S_BIH
C72: D_BLR | D72: S_BLR
C73: D_CHE | D73: S_CHE
C74: D_CZE | D74: S_CZE
C75: D_DEU | D75: S_DEU
C76: D_DNK | D76: S_DNK
C77: D_ESP | D77: S_ESP
C78: D_EST | D78: S_EST
C79: D_FIN | D79: S_FIN
C80: D_FRA | D80: S_FRA
C81: D_GBR | D81: S_GBR
C82: D_GRC | D82: S_GRC
C83: D_HRV | D83: S_HRV
C84: D_HUN | D84: S_HUN
C85: D_IRL | D85: S_IRL
C86: D_ITA | D86: S_ITA
C87: D_LTU | D87: S_LTU
C88: D_LUX | D88: S_LUX
C89: D_LVA | D89: S_LVA
C90: D_MDA | D90: S_MDA
C91: D_MKD | D91: S_MKD
C92: D_NLD | D92: S_NLD
C93: D_NOR | D93: S_NOR
C94: D_POL | D94: S_POL
C95: D_PRT | D95: S_PRT
C96: D_ROM | D96: S_ROM
C97: D_RUS | D97: S_RUS
C98: D_SR | D98: S_SR
C99: D_SVK | D99: S_SVK
C100: D_SVN | D100: S_SVN
C101: D_SWE | D101: S_SWE
C102: D_UKR | D102: S_UKR
